bitfinex/quotes_SOLUSD_20220105
["timestamp","ask_amount","ask_price","bid_price","bid_amount"]
[1641377755030,8.62,170.47,170.32,24.2531]
[1641377755329,8.62,170.47,170.32,25.6151]
[1641377755529,9.38,170.47,170.32,1.362]
[1641377755732,106.98,170.45,170.28,1.47846154]
[1641377755932,8.56,170.44,170.27,0.29353777]
[1641377756131,2.42745629,170.42,170.27,0.29353777]
[1641377756330,0.06,170.4,170.27,0.29353777]
[1641377756533,8.56,170.39,170.27,0.29353777]
[1641377756733,0.06,170.38,170.27,0.29353777]
[1641377756937,8.56,170.37,170.27,0.29353777]
[1641377757235,2.7016139,170.36,170.27,0.29353777]
[1641377758233,0.5,170.39,170.27,0.29353777]
[1641377758234,8.56,170.39,170.27,0.29353777]
[1641377758434,9.06,170.39,170.27,0.29353777]
[1641377759136,3.00458557,170.38,170.27,0.29353777]
[1641377760035,3.50458557,170.38,170.27,0.29353777]
[1641377760234,3.00458557,170.38,170.27,0.29353777]
[1641377760437,3.50458557,170.38,170.27,0.29353777]
[1641377760837,3.00458557,170.38,170.27,0.29353777]
[1641377761735,3.26458557,170.38,170.27,0.29353777]
[1641377761937,3.76458557,170.38,170.27,0.29353777]
[1641377762437,3.82458557,170.38,170.27,0.29353777]
[1641377763036,3.56458557,170.38,170.27,0.29353777]
[1641377763237,3.06458557,170.38,170.27,0.29353777]
[1641377766243,55.0,170.37,170.24,51.55998988]
[1641377767445,55.0,170.37,170.24,51.29998988]
[1641377768545,55.06,170.37,170.24,51.29998988]
[1641377768744,63.62,170.37,170.24,51.29998988]
[1641377769144,63.62,170.37,170.24,50.79998988]
[1641377769744,63.62,170.37,170.24,51.05998988]
[1641377770349,63.62,170.37,170.24,51.55998988]
[1641377771151,8.62,170.37,170.24,51.55998988]
[1641377772353,0.06,170.37,170.25,8.56]
[1641377772655,0.06,170.37,170.25,8.82]
[1641377772852,0.06,170.37,170.25,9.32]
[1641377773255,0.06,170.37,170.26,25.3875]
[1641377773454,0.06,170.37,170.26,25.8875]
[1641377773660,0.06,170.37,170.26,26.1475]
[1641377776477,0.06,170.37,170.26,25.8875]
[1641377778479,0.06,170.37,170.26,26.1475]
[1641377780784,0.06,170.37,170.26,33.2805]
[1641377780984,0.06,170.37,170.26,43.31896154]
[1641377783185,0.06,170.37,170.26,36.18596154]
[1641377783788,0.06,170.37,170.26,35.92596154]
[1641377784187,0.06,170.37,170.26,34.4475]
[1641377784993,0.06,170.37,170.26,36.18596154]
[1641377785789,0.06,170.37,170.26,35.92596154]
[1641377785992,0.06,170.37,170.26,34.4475]
[1641377787594,0.06,170.37,170.26,34.7075]
[1641377789599,0.06,170.37,170.26,36.18596154]
[1641377790602,0.06,170.37,170.26,34.7075]
[1641377791402,0.06,170.37,170.26,33.3518]
[1641377791603,0.06,170.37,170.26,9.32]
[1641377792001,9.922,170.37,170.26,0.76]
[1641377792203,9.922,170.37,170.26,0.5]
[1641377792404,10.422,170.37,170.24,24.68137696]
[1641377792602,10.682,170.37,170.24,24.68137696]
[1641377793001,10.422,170.37,170.24,24.68137696]
[1641377794504,10.422,170.37,170.24,24.94137696]
[1641377794809,10.422,170.37,170.24,24.68137696]
[1641377796508,9.922,170.37,170.24,24.68137696]
[1641377796707,10.422,170.37,170.24,24.68137696]
[1641377797910,10.422,170.37,170.24,23.33367696]
[1641377798111,10.682,170.37,170.24,0.53297696]
[1641377798512,10.682,170.37,170.24,0.03297696]
[1641377800318,1.56407538,170.36,170.24,0.03297696]
[1641377800918,10.422,170.37,170.24,0.03297696]
[1641377801144,9.12,170.37,170.24,1.5114385]
[1641377801344,1.3653,170.36,170.24,2.0114385]
[1641377801546,1.3653,170.36,170.24,2.2714385]
[1641377802260,0.06,170.35,170.24,2.2714385]
[1641377802446,0.06,170.35,170.24,3.5796385]
[1641377803046,0.06,170.35,170.25,23.9529]
[1641377803448,0.06,170.35,170.25,24.7129]
[1641377804246,0.06,170.35,170.25,24.4529]
[1641377805146,0.06,170.35,170.25,0.5]
[1641377805446,0.06,170.35,170.24,0.03297696]
[1641377806049,0.06,170.35,170.24,1.37937696]
[1641377806252,0.06,170.35,170.24,1.87937696]
[1641377806548,0.06,170.35,170.24,2.13937696]
[1641377807949,0.06,170.35,170.24,1.87937696]
[1641377809152,0.06,170.35,170.24,2.13937696]
[1641377809552,0.06,170.35,170.24,3.6178385]
[1641377809756,0.06,170.35,170.24,3.3578385]
[1641377810853,0.06,170.35,170.24,1.87937696]
[1641377811056,0.06,170.35,170.24,3.3578385]
[1641377811455,0.06,170.35,170.24,2.13937696]
[1641377811756,0.06,170.35,170.24,3.3578385]
[1641377812357,0.06,170.35,170.24,1.87937696]
[1641377813056,0.06,170.35,170.24,2.13937696]
[1641377814765,0.06,170.35,170.25,1.47846154]
[1641377814966,0.06,170.35,170.25,2.23846154]
[1641377815359,0.06,170.35,170.25,1.97846154]
[1641377817162,0.06,170.35,170.25,2.23846154]
[1641377817362,0.06,170.35,170.25,1.97846154]
[1641377818862,0.06,170.35,170.25,2.23846154]
[1641377821266,8.62,170.35,170.24,0.03297696]
[1641377821465,9.38,170.35,170.24,0.03297696]
[1641377821864,1.56407538,170.34,170.24,0.03297696]
[1641377822064,8.56,170.33,170.24,0.03297696]
[1641377822264,8.62,170.33,170.24,0.03297696]
[1641377822470,2.77523428,170.32,170.24,0.03297696]
[1641377822763,9.8921,170.31,170.24,0.03297696]
[1641377822966,0.06,170.29,170.24,0.03297696]
[1641377823768,1.3353,170.29,170.24,0.03297696]
[1641377823964,1.5953,170.29,170.24,0.03297696]
[1641377824167,1.3353,170.29,170.24,0.03297696]
[1641377825366,1.8353,170.29,170.24,0.03297696]
[1641377825567,1.3353,170.29,170.24,0.03297696]
[1641377826568,1.8353,170.29,170.24,0.03297696]
[1641377827396,1.3353,170.29,170.24,0.03297696]
[1641377830571,1.5953,170.29,170.24,0.03297696]
[1641377830771,1.3353,170.29,170.24,0.03297696]
[1641377830971,3.3435734,170.29,170.24,0.03297696]
[1641377832171,3.0835734,170.29,170.24,0.03297696]
[1641377832571,3.3435734,170.29,170.24,0.03297696]
[1641377832971,3.0835734,170.29,170.24,0.03297696]
[1641377833171,1.8082734,170.29,170.24,0.03297696]
[1641377836973,51.0,170.28,170.21,24.17767696]
[1641377840381,1.7482734,170.29,170.21,24.17767696]
[1641377840781,1.7482734,170.29,170.21,32.73767696]
[1641377843208,1.7482734,170.29,170.21,32.47767696]
[1641377844415,1.7482734,170.29,170.21,33.9561385]
[1641377844611,1.7482734,170.29,170.21,34.2161385]
[1641377847414,1.7482734,170.29,170.21,33.9561385]
[1641377848315,1.7482734,170.29,170.21,32.47767696]
[1641377848716,1.7482734,170.29,170.21,32.73767696]
[1641377851116,2.77523428,170.32,170.21,32.73767696]
[1641377853722,2.77523428,170.32,170.21,32.47767696]
[1641377854924,1.3107,170.31,170.21,32.47767696]
[1641377856623,1.3107,170.31,170.21,32.73767696]
[1641377857230,1.8107,170.31,170.21,24.17767696]
[1641377857527,1.8107,170.31,170.21,32.73767696]
[1641377858826,1.8107,170.31,170.21,32.47767696]
[1641377860030,1.8707,170.31,170.21,24.17767696]
[1641377861328,1.8707,170.31,170.21,25.6561385]
[1641377861529,2.1307,170.31,170.21,25.6561385]
[1641377861729,2.1307,170.31,170.21,25.1561385]
[1641377861930,2.1307,170.31,170.21,23.67767696]
[1641377862229,12.25477538,170.31,170.21,23.41767696]
[1641377862432,12.25477538,170.31,170.21,22.12327696]
[1641377862631,12.25477538,170.31,170.19,79.9372]
[1641377862933,0.06,170.29,170.19,0.5]
[1641377863333,0.06,170.29,170.16,26.1894]
[1641377863532,1.56407538,170.28,170.16,26.4494]
[1641377863834,0.06,170.27,170.16,26.4494]
[1641377864035,2.70283589,170.26,170.16,26.4494]
[1641377867739,4.04203589,170.26,170.16,26.4494]
[1641377869365,4.54203589,170.26,170.16,26.4494]
[1641377870765,4.04203589,170.26,170.16,26.4494]
[1641377872668,4.04203589,170.26,170.16,26.1894]
[1641377873268,0.06,170.25,170.16,34.7494]
[1641377875368,0.06,170.25,170.16,35.0094]
[1641377875868,0.06,170.25,170.16,34.7494]
[1641377876070,0.06,170.25,170.16,26.1894]
[1641377876571,0.06,170.25,170.16,1.8002]
[1641377876775,0.06,170.25,170.13,8.56]
[1641377876970,0.06,170.25,170.14,23.1422]
[1641377878172,0.06,170.25,170.15,1.47846154]
[1641377878373,0.06,170.25,170.15,1.97846154]
[1641377878772,0.06,170.25,170.15,2.23846154]
[1641377879676,0.06,170.25,170.16,1.47846154]
[1641377879877,0.06,170.25,170.16,3.25366154]
[1641377880078,0.06,170.25,170.16,3.51366154]
[1641377880476,0.06,170.25,170.16,2.23846154]
[1641377881076,0.06,170.25,170.16,32.04498692]
[1641377881275,0.06,170.25,170.16,31.81479878]
[1641377881477,0.06,170.25,170.17,1.47846154]
[1641377881676,0.06,170.25,170.17,24.64336154]
[1641377881878,0.06,170.25,170.17,24.90336154]
[1641377882077,0.06,170.25,170.18,1.47846154]
[1641377882278,0.06,170.25,170.18,2.76586154]
[1641377882479,0.06,170.25,170.18,3.02586154]
[1641377883278,0.06,170.25,170.18,1.5474]
[1641377884378,0.06,170.25,170.18,3.02586154]
[1641377884678,0.06,170.25,170.18,3.52586154]
[1641377884877,0.06,170.25,170.18,2.0474]
[1641377887377,0.06,170.25,170.18,3.52586154]
[1641377888981,0.06,170.25,170.18,3.02586154]
[1641377889181,0.06,170.25,170.09,108.3144]
[1641377889182,8.62,170.25,170.15,1.47846154]
[1641377889380,10.59846154,170.25,170.09,2.6315]
[1641377889579,24.054,170.24,170.09,11.1915]
[1641377889780,1.62407538,170.23,170.09,11.1915]
[1641377889980,2.38407538,170.23,170.09,11.1915]
[1641377890182,1.3405,170.22,170.1,22.6639]
[1641377890382,1.8405,170.22,170.1,22.6639]
[1641377890583,2.1005,170.22,170.1,22.6639]
[1641377890785,1.8405,170.22,170.1,22.6639]
[1641377890984,1.56407538,170.21,170.1,22.6639]
[1641377891187,2.52223681,170.2,170.1,22.6639]
[1641377892887,3.08223681,170.2,170.1,22.9239]
[1641377893086,2.58223681,170.2,170.1,22.9239]
[1641377893486,2.58223681,170.2,170.11,8.56]
[1641377893886,2.58223681,170.2,170.11,9.32]
[1641377894588,2.58223681,170.2,170.11,10.6275]
[1641377895489,0.06,170.2,170.11,10.6275]
[1641377895691,0.06,170.2,170.12,24.4496]
[1641377895893,0.06,170.2,170.12,24.9496]
[1641377896190,0.06,170.2,170.12,25.2096]
[1641377897391,0.06,170.2,170.12,0.76]
[1641377897592,0.06,170.2,170.11,10.6275]
[1641377898395,0.06,170.2,170.12,1.47846154]
[1641377898593,0.06,170.2,170.13,36.37644115]
[1641377898994,0.06,170.2,170.14,1.47846154]
[1641377899194,0.06,170.2,170.15,8.56]
[1641377899493,0.06,170.2,170.15,10.3216]
[1641377899701,0.06,170.2,170.16,1.47846154]
[1641377899895,0.06,170.2,170.17,8.56]
[1641377900295,0.06,170.2,170.18,1.47846154]
[1641377900697,0.06,170.2,170.18,1.97846154]
[1641377900899,0.06,170.2,170.18,2.23846154]
[1641377901600,0.06,170.2,170.18,1.97846154]
[1641377902915,0.06,170.2,170.18,2.23846154]
[1641377904617,0.06,170.2,170.18,0.76]
[1641377904818,32.06439994,170.19,170.18,0.76]
[1641377905019,32.06439994,170.19,170.15,10.5816]
[1641377905620,6.06439994,170.19,170.15,9.32]
[1641377906319,1.3074,170.23,170.15,10.79846154]
[1641377906719,1.3074,170.23,170.15,10.53846154]
[1641377908523,1.3074,170.23,170.15,9.06]
[1641377909122,1.3074,170.23,170.15,0.5]
[1641377909320,1.3074,170.23,170.12,34.4793]
[1641377909321,1.3074,170.23,170.14,8.56]
[1641377909520,1.3074,170.23,170.14,8.82]
[1641377909722,1.3074,170.23,170.14,9.32]
[1641377909923,1.3074,170.23,170.15,24.2151]
[1641377910325,1.3074,170.23,170.15,24.7151]
[1641377910525,1.3074,170.23,170.16,1.47846154]
[1641377910729,1.3074,170.23,170.15,24.7151]
[1641377911529,1.3074,170.23,170.15,24.9751]
[1641377911731,1.3074,170.23,170.16,1.47846154]
[1641377911931,1.3074,170.23,170.16,0.5]
[1641377912332,1.3074,170.23,170.15,33.2751]
[1641377912531,3.62586904,170.23,170.15,33.2751]
[1641377913130,3.62586904,170.23,170.15,24.7151]
[1641377913330,3.62586904,170.23,170.15,24.9751]
[1641377913935,2.31846904,170.23,170.15,33.5351]
[1641377914133,2.31846904,170.23,170.16,1.47846154]
[1641377914333,2.31846904,170.23,170.16,1.97846154]
[1641377914533,2.31846904,170.23,170.16,0.76]
[1641377915135,2.31846904,170.23,170.15,33.2751]
[1641377915833,2.31846904,170.23,170.16,1.47846154]
[1641377916033,2.31846904,170.23,170.15,33.2751]
[1641377916436,2.31846904,170.23,170.15,33.5351]
[1641377918437,2.31846904,170.23,170.15,32.7751]
[1641377918637,2.37846904,170.23,170.15,24.2151]
[1641377918838,2.87846904,170.23,170.11,8.56]
[1641377919042,2.87846904,170.23,170.11,33.8688]
[1641377919638,0.06,170.21,170.11,33.8688]
[1641377919839,0.06,170.21,170.11,34.3688]
[1641377922241,0.06,170.21,170.11,9.06]
[1641377922840,1.53846154,170.21,170.11,0.5]
[1641377923040,1.79846154,170.21,170.11,0.5]
[1641377923242,0.82,170.21,170.09,10.3944]
[1641377923642,1.56407538,170.19,170.09,11.6527]
[1641377923848,2.06407538,170.19,170.09,10.3183]
[1641377924041,2.21388744,170.17,170.09,10.3183]
[1641377924647,2.21388744,170.17,170.09,9.06]
[1641377924843,0.06,170.16,170.09,9.06]
[1641377925244,0.06,170.16,170.09,0.5]
[1641377925444,0.06,170.16,170.06,22.9483]
[1641377925845,0.06,170.16,170.06,23.4483]
[1641377926046,0.06,170.16,170.06,24.92676154]
[1641377926546,0.06,170.16,170.06,24.7717]
[1641377927247,0.06,170.16,170.06,33.3317]
[1641377928050,0.06,170.16,170.07,1.47846154]
[1641377928449,0.06,170.16,170.07,2.23846154]
[1641377929477,0.06,170.16,170.07,1.97846154]
[1641377929677,0.06,170.16,170.07,1.8558]
[1641377932182,0.06,170.16,170.07,2.1158]
[1641377934584,2.98550748,170.16,170.07,2.1158]
[1641377937090,2.98550748,170.16,170.07,1.8558]
[1641377937488,2.92550748,170.16,170.07,1.8558]
[1641377939390,2.92550748,170.16,170.07,2.1158]
[1641377941594,2.89377538,170.17,170.07,2.1158]
[1641377941795,2.89377538,170.17,170.08,8.56]
[1641377941993,1.3297,170.17,170.09,24.0831]
[1641377942198,1.3297,170.17,170.09,32.6431]
[1641377942393,1.3297,170.17,170.09,33.1431]
[1641377942593,2.59200752,170.16,170.09,33.4031]
[1641377942793,2.59200752,170.16,170.1,1.3103]
[1641377942993,2.59200752,170.16,170.1,1.5703]
[1641377945496,2.59200752,170.16,170.1,1.3103]
[1641377947430,2.59200752,170.16,170.09,24.0831]
[1641377948329,2.59200752,170.16,170.07,8.56]
[1641377948530,2.59200752,170.16,170.07,9.06]
[1641377950836,2.59200752,170.16,170.07,9.32]
[1641377953040,0.06,170.15,170.07,9.32]
[1641377953438,0.06,170.15,170.07,9.06]
[1641377953639,0.06,170.15,170.07,0.5]
[1641377953838,0.06,170.15,170.06,25.7203]
[1641377954839,0.06,170.15,170.06,25.9803]
[1641377955042,1.62407538,170.15,170.06,25.9803]
[1641377956140,1.56407538,170.14,170.06,25.9803]
[1641377958843,1.56407538,170.14,170.06,25.4803]
[1641377959342,1.56407538,170.14,170.06,24.1968]
[1641377960146,1.56407538,170.14,170.06,24.6968]
[1641377960645,1.62407538,170.14,170.06,24.6968]
[1641377961043,1.56407538,170.13,170.06,24.6968]
[1641377961845,1.56407538,170.13,170.06,24.4368]
[1641377962946,1.56407538,170.13,170.06,24.6968]
[1641377963147,1.56407538,170.14,170.06,24.6968]
[1641377963547,1.56407538,170.14,170.07,1.3236]
[1641377963947,1.56407538,170.14,170.07,1.5836]
[1641377964347,1.56407538,170.14,170.07,1.3236]
[1641377965950,1.56407538,170.14,170.07,1.5836]
[1641377967075,2.88157538,170.15,170.07,10.1436]
[1641377967375,2.94157538,170.15,170.07,1.5836]
[1641377967774,2.94157538,170.15,170.07,1.3236]
[1641377969579,1.56407538,170.14,170.07,1.5836]
[1641377970778,1.56407538,170.14,170.07,1.3236]
[1641377971379,1.56407538,170.14,170.06,24.4368]
[1641377972980,1.56407538,170.14,170.06,24.6968]
[1641377973781,1.3175,170.15,170.06,24.6968]
[1641377974482,1.8175,170.15,170.06,24.6968]
[1641377975081,1.8175,170.15,170.06,24.4368]
[1641377975284,1.8775,170.15,170.06,24.4368]
[1641377976683,1.8775,170.15,170.07,1.2749]
[1641377977085,1.8775,170.15,170.07,1.5349]
[1641377978988,0.06,170.15,170.08,8.56]
[1641377979187,0.06,170.15,170.08,10.03846154]
[1641377979387,0.06,170.15,170.09,1.47846154]
[1641377979588,0.06,170.15,170.09,1.73846154]
[1641377979788,0.06,170.15,170.09,0.26]
[1641377980188,0.06,170.15,170.08,9.32]
[1641377980390,0.06,170.15,170.09,24.3814]
[1641377980792,0.06,170.15,170.09,25.1414]
[1641377981390,0.06,170.15,170.09,33.7014]
[1641377981588,0.06,170.15,170.1,1.2745]
[1641377981988,0.06,170.15,170.1,2.0345]
[1641377982189,2.29646014,170.15,170.1,2.0345]
[1641377983592,0.06,170.15,170.1,2.0345]
[1641377983794,0.06,170.15,170.1,1.7745]
[1641377983992,0.06,170.15,170.1,1.2745]
[1641377984922,0.06,170.15,170.1,1.7745]
[1641377985095,0.06,170.15,170.1,2.0345]
[1641377987698,0.06,170.15,170.12,30.14950379]
[1641377987899,0.06,170.15,170.13,8.56]
[1641377988102,0.06,170.15,170.13,8.82]
[1641377988303,0.06,170.15,170.13,9.32]
[1641377988805,0.06,170.15,170.13,34.0669]
[1641377989003,0.06,170.15,170.13,33.5669]
[1641377989202,0.06,170.15,170.13,34.0669]
[1641377992108,0.06,170.15,170.13,35.54536154]
[1641377992728,0.06,170.15,170.13,34.0669]
[1641377992928,0.06,170.15,170.13,35.54536154]
[1641377993329,0.06,170.15,170.14,1.2839]
[1641377993529,0.06,170.15,170.14,10.1039]
[1641377993732,0.06,170.15,170.14,10.6039]
[1641377997736,0.06,170.15,170.14,10.3439]
[1641377999638,0.06,170.15,170.14,11.82236154]
[1641378000046,0.06,170.15,170.14,10.3439]
[1641378000548,0.06,170.15,170.14,11.82236154]
[1641378001248,0.06,170.15,170.14,10.3439]
[1641378001549,0.06,170.15,170.14,11.82236154]
[1641378001947,0.06,170.15,170.14,10.3439]
[1641378002548,0.06,170.15,170.14,10.6039]
[1641378003948,0.06,170.15,170.14,10.1039]
[1641378004349,0.06,170.15,170.14,9.8439]
[1641378005349,0.06,170.15,170.14,10.3439]
[1641378005550,0.06,170.15,170.14,10.6039]
[1641378006353,0.06,170.15,170.14,9.06]
[1641378006857,0.06,170.15,170.14,8.56]
[1641378008355,0.06,170.15,170.14,8.82]
[1641378009358,0.06,170.15,170.14,9.32]
[1641378010757,0.06,170.15,170.14,10.79846154]
[1641378014261,0.06,170.15,170.14,10.53846154]
[1641378016965,0.06,170.15,170.14,10.79846154]
[1641378017665,0.06,170.15,170.14,9.32]
[1641378021496,0.06,170.15,170.14,10.79846154]
[1641378022099,1.56407538,170.23,170.15,59.56958891]
[1641378022298,1.56407538,170.23,170.16,8.56]
[1641378022497,1.56407538,170.23,170.16,10.29846154]
[1641378022707,1.56407538,170.23,170.16,10.79846154]
[1641378022998,1.56407538,170.26,170.17,24.9319]
[1641378023198,1.56407538,170.26,170.18,8.56]
[1641378023398,1.56407538,170.26,170.18,9.06]
[1641378023601,1.56407538,170.26,170.18,9.32]
[1641378023797,1.56407538,170.26,170.19,23.961]
[1641378023999,1.56407538,170.26,170.2,8.56]
[1641378024198,1.56407538,170.26,170.2,9.8299]
[1641378024398,1.56407538,170.26,170.2,10.5899]
[1641378025601,1.56407538,170.27,170.2,10.5899]
[1641378026102,1.56407538,170.28,170.2,10.5899]
[1641378026906,1.56407538,170.28,170.21,23.5847]
[1641378027506,1.56407538,170.28,170.21,24.3447]
[1641378028606,1.56407538,170.27,170.21,24.3447]
[1641378029508,1.56407538,170.28,170.21,24.3447]
[1641378031112,1.56407538,170.28,170.22,37.41563556]
[1641378031313,1.56407538,170.34,170.22,37.41563556]
[1641378031517,1.56407538,170.34,170.23,2.79426154]
[1641378031720,1.56407538,170.34,170.24,8.56]
[1641378031917,1.56407538,170.34,170.24,10.53846154]
[1641378032118,2.53441403,170.33,170.24,10.79846154]
[1641378032320,2.53441403,170.33,170.25,1.47846154]
[1641378032720,2.53441403,170.33,170.25,28.34546154]
[1641378034019,1.2718,170.35,170.25,26.867]
[1641378034421,1.2718,170.35,170.26,8.56]
[1641378034823,1.2718,170.35,170.26,9.32]
[1641378036724,1.2718,170.35,170.26,10.79846154]
[1641378037123,1.2718,170.35,170.26,9.32]
[1641378037448,1.2718,170.35,170.26,10.79846154]
[1641378037845,1.56407538,170.33,170.26,9.32]
[1641378039246,1.56407538,170.32,170.26,9.32]
[1641378039952,1.2718,170.35,170.26,9.32]
[1641378039953,1.56407538,170.33,170.26,9.32]
[1641378041753,4.49175362,170.33,170.26,10.79846154]
[1641378042456,4.49175362,170.33,170.26,9.32]
[1641378042657,4.49175362,170.33,170.26,9.06]
[1641378042854,4.99175362,170.33,170.26,8.56]
[1641378043054,4.99175362,170.33,170.22,8.56]
[1641378043257,4.49175362,170.33,170.21,8.56]
[1641378043453,4.99175362,170.33,170.2,1.47846154]
[1641378043654,4.99175362,170.33,170.21,8.56]
[1641378044054,1.56407538,170.3,170.21,9.9163]
[1641378044355,1.56407538,170.3,170.21,10.4163]
[1641378044555,1.56407538,170.3,170.21,10.6763]
[1641378045357,1.56407538,170.3,170.21,10.4163]
[1641378045758,1.56407538,170.3,170.21,11.89476154]
[1641378045961,1.56407538,170.3,170.22,24.6519]
[1641378046461,1.56407538,170.3,170.22,25.1519]
[1641378046659,1.56407538,170.3,170.22,25.4119]
[1641378046859,1.56407538,170.31,170.22,25.4119]
[1641378047059,1.56407538,170.31,170.22,26.6563]
[1641378047461,1.3293,170.32,170.22,26.6563]
[1641378047462,1.56407538,170.3,170.22,26.6563]
[1641378049662,1.56407538,170.3,170.22,26.3963]
[1641378050962,1.56407538,170.29,170.22,25.4119]
[1641378052064,1.56407538,170.29,170.22,24.9119]
[1641378052868,1.56407538,170.29,170.22,0.26]
[1641378053066,1.56407538,170.29,170.2,1.2946]
[1641378053266,1.56407538,170.29,170.2,1.7946]
[1641378053667,1.56407538,170.27,170.2,0.5]
[1641378053870,1.56407538,170.27,170.18,24.8181]
[1641378054067,2.1872509,170.26,170.18,24.8181]
[1641378054268,2.1872509,170.26,170.18,26.29656154]
[1641378054668,2.1872509,170.26,170.18,24.8181]
[1641378054969,3.75132628,170.26,170.18,25.0781]
[1641378055171,3.75132628,170.26,170.18,26.29656154]
[1641378055469,3.75132628,170.26,170.18,24.8181]
[1641378056472,3.75132628,170.26,170.18,26.55656154]
[1641378057071,2.1872509,170.26,170.18,26.55656154]
[1641378057270,2.1872509,170.26,170.18,25.0781]
[1641378061775,1.56407538,170.25,170.18,25.0781]
[1641378065805,1.56407538,170.25,170.19,8.56]
[1641378066008,1.56407538,170.25,170.19,16.291]
[1641378066204,1.56407538,170.25,170.19,18.26946154]
[1641378066402,1.56407538,170.25,170.2,1.47846154]
[1641378066602,1.56407538,170.28,170.21,38.87683037]
[1641378066804,1.56407538,170.28,170.22,24.5596]
[1641378067006,1.56407538,170.28,170.22,26.29806154]
[1641378067204,1.56407538,170.28,170.22,26.79806154]
[1641378067404,1.56407538,170.28,170.23,1.47846154]
[1641378067603,1.56407538,170.28,170.22,25.3196]
[1641378067804,4.03811061,170.31,170.23,8.56]
[1641378068007,4.03811061,170.31,170.23,8.82]
[1641378068204,4.03811061,170.31,170.23,9.32]
[1641378068605,2.47403523,170.31,170.23,9.32]
[1641378069506,4.03811061,170.31,170.23,8.56]
[1641378069806,4.03811061,170.31,170.19,8.56]
[1641378070005,4.53811061,170.31,170.19,8.56]
[1641378070205,4.53811061,170.31,170.19,9.06]
[1641378070404,1.56407538,170.3,170.19,9.06]
[1641378070608,2.93677538,170.3,170.2,23.4701]
[1641378070807,3.43677538,170.3,170.2,23.4701]
[1641378071006,3.43677538,170.3,170.2,23.9701]
[1641378071214,3.43677538,170.3,170.2,25.5693]
[1641378072207,1.56407538,170.29,170.2,25.5693]
[1641378073008,2.93677538,170.3,170.2,25.5693]
[1641378073212,3.43677538,170.3,170.2,25.5693]
[1641378074010,1.56407538,170.29,170.2,25.5693]
[1641378074910,1.56407538,170.29,170.2,25.0693]
[1641378075109,1.56407538,170.29,170.2,25.5693]
[1641378075913,2.06407538,170.29,170.2,25.5693]
[1641378076912,0.5,170.29,170.2,25.5693]
[1641378077512,3.43677538,170.3,170.2,25.5693]
[1641378077713,3.43677538,170.3,170.2,25.0693]
[1641378077912,1.56407538,170.29,170.2,25.0693]
[1641378078314,2.06407538,170.29,170.2,25.0693]
[1641378078711,1.56407538,170.28,170.2,25.0693]
[1641378078914,2.06407538,170.28,170.2,25.0693]
[1641378081314,1.56407538,170.28,170.2,25.0693]
[1641378081515,2.06407538,170.28,170.2,25.0693]
[1641378083514,1.56407538,170.28,170.2,25.0693]
[1641378084014,2.06407538,170.28,170.2,25.0693]
[1641378084214,0.5,170.28,170.2,25.0693]
[1641378084415,2.06407538,170.29,170.2,25.0693]
[1641378085619,1.56407538,170.28,170.2,25.0693]
[1641378085818,2.06407538,170.28,170.2,25.0693]
[1641378086320,0.5,170.28,170.2,25.0693]
[1641378086818,2.06407538,170.29,170.2,25.0693]
[1641378087017,1.56407538,170.28,170.2,25.0693]
[1641378087420,2.06407538,170.28,170.2,25.0693]
[1641378087819,2.06407538,170.28,170.2,25.5693]
[1641378088219,2.06407538,170.28,170.2,24.8093]
[1641378088821,2.06407538,170.28,170.2,25.3093]
[1641378089019,2.06407538,170.28,170.2,24.8093]
[1641378089426,2.06407538,170.28,170.2,25.0693]
[1641378090029,0.5,170.28,170.2,25.0693]